bitfinex/quotes_SOLUSD_20250815
["timestamp","ask_amount","ask_price","bid_price","bid_amount"]
[1755268470863,6.98898895,189.87,189.86,15.51414745]
[1755268471264,6.98898895,189.87,189.86,16.17414745]
[1755268471465,6.98898895,189.87,189.86,21.44118632]
[1755268471669,6.98898895,189.87,189.86,20.78118632]
[1755268472304,6.98898895,189.87,189.86,21.44118632]
[1755268472509,6.98898895,189.87,189.86,20.78118632]
[1755268472703,6.98898895,189.87,189.86,15.51414745]
[1755268473822,6.98898895,189.87,189.86,20.78118632]
[1755268474114,6.98898895,189.87,189.86,15.51414745]
[1755268475101,6.98898895,189.86,189.85,0.03]
[1755268475286,6.98898895,189.86,189.85,15.54414745]
[1755268475812,7.66898895,189.86,189.85,15.54414745]
[1755268475980,6.98898895,189.86,189.85,15.54414745]
[1755268476184,7.66898895,189.86,189.85,15.54414745]
[1755268476597,6.98898895,189.86,189.85,15.54414745]
[1755268477628,7.66898895,189.86,189.85,15.54414745]
[1755268477812,6.98898895,189.86,189.85,15.54414745]
[1755268478013,6.98898895,189.86,189.85,20.81146375]
[1755268478199,6.98898895,189.86,189.85,15.54414745]
[1755268478893,6.98898895,189.86,189.85,20.81146375]
[1755268480112,6.98898895,189.86,189.85,21.47146375]
[1755268480813,6.98898895,189.87,189.85,21.47146375]
[1755268481005,6.98898895,189.86,189.85,5.2973163]
[1755268481207,6.98898895,189.86,189.85,20.81146375]
[1755268481922,6.98898895,189.88,189.85,20.81146375]
[1755268482112,6.98898895,189.86,189.85,5.2973163]
[1755268482320,6.98898895,189.86,189.85,20.81146375]
[1755268482506,6.98898895,189.88,189.85,21.47146375]
[1755268482695,6.98898895,189.88,189.87,15.51414745]
[1755268482900,6.98898895,189.88,189.87,20.78090891]
[1755268483915,6.98898895,189.89,189.87,21.44090891]
[1755268484094,6.98898895,189.89,189.88,16.17414745]
[1755268484293,6.98898895,189.89,189.88,15.51414745]
[1755268484831,0.06,189.92,189.91,26.0]
[1755268484999,6.98898895,189.98,189.93,41.51414745]
[1755268485201,0.06,189.99,189.93,42.04065721]
[1755268485202,7.04898895,189.99,189.93,42.04065721]
[1755268485399,6.98898895,189.97,189.95,41.51414745]
[1755268485601,0.06,189.99,189.95,41.51414745]
[1755268485904,0.06,189.99,189.95,81.39414745]
[1755268486307,0.06,189.99,189.95,96.50036302]
[1755268486512,6.98898895,189.98,189.95,97.02681735]
[1755268487126,6.98898895,189.98,189.95,102.29136065]
[1755268487441,6.98898895,189.98,189.95,85.95869075]
[1755268487732,6.98898895,189.98,189.95,46.77869075]
[1755268487906,6.98898895,189.98,189.95,101.06490632]
[1755268488326,0.06,189.99,189.95,95.80036302]
[1755268488626,6.98898895,189.98,189.95,101.06490632]
[1755268489334,7.75898895,189.96,189.89,0.7]
[1755268489502,6.98898895,189.95,189.9,54.28621557]
[1755268489705,6.98898895,189.93,189.9,54.28621557]
[1755268490111,6.98898895,189.93,189.92,26.0]
[1755268490300,0.77,189.96,189.9,39.18]
[1755268490301,6.98898895,189.92,189.9,39.18]
[1755268490522,6.98898895,189.93,189.9,39.18]
[1755268490722,6.98898895,189.91,189.85,7.718989]
[1755268491030,6.98898895,189.91,189.9,15.51414745]
[1755268491714,6.98898895,189.93,189.91,15.10621557]
[1755268491911,6.98898895,189.93,189.92,15.51414745]
[1755268492416,6.98898895,189.91,189.9,39.16]
[1755268492621,6.98898895,189.91,189.9,15.54414745]
[1755268492930,12.96412612,189.93,189.9,15.54414745]
[1755268493138,6.98898895,189.91,189.9,15.54414745]
[1755268493453,6.98898895,189.91,189.9,0.03]
[1755268493454,23.2131364,189.91,189.9,0.03]
[1755268493735,6.98898895,189.86,189.85,0.03]
[1755268494127,6.98898895,189.86,189.85,15.54414745]
[1755268496342,7.69898895,189.86,189.85,0.03]
[1755268496632,6.98898895,189.86,189.85,0.03]
[1755268496814,6.98898895,189.86,189.85,15.54414745]
[1755268497217,6.98898895,189.86,189.85,0.03]
[1755268498311,28.48017527,189.86,189.85,0.03]
[1755268498610,12.96602782,189.86,189.85,0.03]
[1755268498838,13.49292597,189.86,189.85,0.03]
[1755268499809,12.96602782,189.86,189.85,0.03]
[1755268500253,8.2258871,189.86,189.85,0.03]
[1755268500550,7.69898895,189.86,189.85,0.03]
[1755268500845,6.98898895,189.86,189.85,0.03]
[1755268501643,7.69898895,189.86,189.85,0.03]
[1755268501857,7.69898895,189.86,189.83,0.03]
[1755268501858,6.98898895,189.84,189.83,0.03]
[1755268502162,23.03003455,189.84,189.83,0.03]
[1755268502362,23.74003455,189.84,189.83,0.03]
[1755268502940,27.22483163,189.84,189.83,0.03]
[1755268503339,8.2258871,189.84,189.83,0.03]
[1755268503658,29.00762831,189.84,189.83,0.03]
[1755268504033,32.48949653,189.84,189.83,0.03]
[1755268504234,32.48949653,189.84,189.82,0.03]
[1755268504235,22.09520452,189.83,189.82,0.03]
[1755268504455,26.69500462,189.83,189.82,0.03]
[1755268505570,48.09520452,189.82,189.8,0.03]
[1755268505745,77.31625012,189.81,189.8,0.03]
[1755268505947,78.02625012,189.81,189.8,1e-08]
[1755268506139,22.09520452,189.8,189.79,1e-08]
[1755268506362,41.79518993,189.8,189.79,1e-08]
[1755268507169,48.09520452,189.78,189.77,1e-08]
[1755268507362,6.98898895,189.67,189.66,0.1]
[1755268507665,66.95545147,189.67,189.66,0.1]
[1755268507965,52.15130402,189.67,189.66,0.1]
[1755268508171,67.66545147,189.67,189.66,0.1]
[1755268508462,46.16898895,189.67,189.66,0.1]
[1755268508877,6.98898895,189.67,189.66,0.1]
[1755268509043,6.98898895,189.67,189.66,21.58674051]
[1755268509242,6.98898895,189.67,189.66,15.61414745]
[1755268509464,6.98898895,189.67,189.66,0.1]
[1755268510076,6.98898895,189.67,189.66,16.31414745]
[1755268510291,6.98898895,189.67,189.66,21.58674051]
[1755268510450,6.98898895,189.68,189.66,21.58674051]
[1755268510775,6.98898895,189.68,189.67,16.21414745]
[1755268510972,6.98898895,189.69,189.67,16.21414745]
[1755268511150,6.98898895,189.68,189.67,15.51414745]
[1755268511351,6.98898895,189.69,189.67,15.51414745]
[1755268511563,6.98898895,189.68,189.67,20.78646252]
[1755268511753,6.98898895,189.69,189.67,21.48646252]
[1755268512056,6.98898895,189.67,189.66,0.1]
[1755268513262,6.98898895,189.67,189.66,21.58674051]
[1755268514251,6.98898895,189.69,189.66,21.58674051]
[1755268514444,6.98898895,189.74,189.68,15.51414745]
[1755268514651,20.78280366,189.81,189.73,15.51414745]
[1755268514652,6.98898895,189.77,189.73,15.51414745]
[1755268514877,6.98898895,189.77,189.76,15.51414745]
[1755268515054,6.98898895,189.78,189.76,15.51414745]
[1755268515251,6.98898895,189.78,189.77,15.51414745]
[1755268515485,6.98898895,189.78,189.76,15.51414745]
[1755268515695,6.98898895,189.77,189.76,5.26972448]
[1755268515871,6.98898895,189.74,189.72,5.27092557]
[1755268516182,6.98898895,189.73,189.72,5.27092557]
[1755268516555,6.98898895,189.73,189.72,5.96092557]
[1755268517174,6.98898895,189.73,189.72,21.47507302]
[1755268517356,6.98898895,189.73,189.72,20.78507302]
[1755268517659,6.98898895,189.74,189.72,21.47507302]
[1755268517865,6.98898895,189.81,189.74,15.10621557]
[1755268518083,6.98898895,189.76,189.75,0.69]
[1755268518285,1.21689815,189.84,189.72,5.96092557]
[1755268518286,6.98898895,189.75,189.72,5.96092557]
[1755268518460,6.98898895,189.73,189.72,20.78507302]
[1755268518866,6.98898895,189.73,189.72,21.47507302]
[1755268519172,6.98898895,189.73,189.72,20.78507302]
[1755268519482,6.98898895,189.73,189.72,21.47507302]
[1755268520185,6.98898895,189.71,189.69,0.69]
[1755268520383,6.98898895,189.71,189.69,26.69]
[1755268520553,6.98898895,189.71,189.7,15.51414745]
[1755268520758,6.98898895,189.71,189.7,16.20414745]
[1755268521260,6.98898895,189.72,189.7,15.51414745]
[1755268521459,6.98898895,189.71,189.7,5.96148128]
[1755268521665,6.98898895,189.71,189.7,15.51414745]
[1755268522660,6.98898895,189.71,189.7,20.78562873]
[1755268524667,6.98898895,189.72,189.7,21.47562873]
[1755268524972,6.98898895,189.76,189.71,16.20414745]
[1755268525160,6.98898895,189.76,189.75,15.51414745]
[1755268525361,6.98898895,189.76,189.75,16.20414745]
[1755268525562,6.98898895,189.76,189.75,21.47423967]
[1755268525760,6.98898895,189.76,189.75,20.78423967]
[1755268526570,6.98898895,189.72,189.71,20.78535086]
[1755268526994,131.9,189.79,189.71,20.78535086]
[1755268526995,6.98898895,189.79,189.71,73.83335939]
[1755268527216,132.59,189.84,189.72,16.32330812]
[1755268527217,0.06,189.77,189.72,16.32330812]
[1755268527414,0.06,189.77,189.76,15.51414745]
[1755268527589,0.06,189.77,189.76,20.78396195]
[1755268527789,0.06,189.77,189.76,21.47396195]
[1755268529620,0.06,189.79,189.78,5.26925914]
[1755268529799,0.06,189.79,189.78,20.78340659]
[1755268530217,0.06,189.79,189.78,21.47340659]
[1755268530601,1e-08,189.79,189.78,21.47340659]
[1755268530796,6.98898895,189.82,189.8,26.0]
[1755268531106,6.98898895,189.83,189.81,15.51414745]
[1755268531312,39.24,189.89,189.82,16.20414745]
[1755268531313,6.98898895,189.86,189.82,16.20414745]
[1755268531498,7.04898895,189.85,189.84,20.78174121]
[1755268531702,7.04898895,189.85,189.84,5.26759376]
[1755268532011,7.04898895,189.85,189.84,20.78174121]
[1755268532222,7.04898895,189.85,189.83,15.51414745]
[1755268532411,6.98898895,189.82,189.79,5.2689815]
[1755268532591,6.98898895,189.81,189.8,15.51414745]
[1755268533216,7.67898895,189.81,189.8,15.51414745]
[1755268533524,6.98898895,189.81,189.8,20.78285134]
[1755268534019,6.98898895,189.79,189.78,15.51414745]
[1755268534602,6.98898895,189.79,189.73,39.21]
[1755268534603,6.98898895,189.75,189.73,0.03]
[1755268534812,6.98898895,189.74,189.73,0.03]
[1755268534996,7.67898895,189.74,189.73,7.018989]
[1755268535202,7.67898895,189.74,189.73,0.03]
[1755268536000,8.2058871,189.74,189.73,0.03]
[1755268536322,13.47625707,189.74,189.73,0.03]
[1755268536509,8.2058871,189.74,189.73,0.03]
[1755268536709,11.666904,189.74,189.73,0.03]
[1755268536901,7.67898895,189.74,189.73,0.03]
[1755268538519,6.98898895,189.74,189.73,15.54414745]
[1755268539332,6.98898895,189.74,189.73,16.23414745]
[1755268540031,6.98898895,189.74,189.73,21.50479521]
[1755268540207,6.98898895,189.74,189.73,20.81479521]
[1755268540605,6.98898895,189.74,189.73,15.54414745]
[1755268541219,7.67898895,189.74,189.73,0.03]
[1755268541526,11.14600093,189.74,189.73,0.03]
[1755268541715,6.98898895,189.74,189.73,15.54414745]
[1755268542107,7.67898895,189.74,189.73,15.54414745]
[1755268542295,6.98898895,189.74,189.73,15.54414745]
[1755268542999,6.98898895,189.74,189.73,20.81479521]
[1755268543623,6.98898895,189.74,189.73,15.54414745]
[1755268543824,6.98898895,189.74,189.73,20.81479521]
[1755268544331,6.98898895,189.75,189.73,21.50479521]
[1755268544510,6.98898895,189.75,189.74,15.51414745]
[1755268544700,6.98898895,189.75,189.74,16.20414745]
[1755268545025,6.98898895,189.75,189.74,15.51414745]
[1755268545820,6.98898895,189.74,189.73,0.03]
[1755268546127,11.18231283,189.74,189.73,0.03]
[1755268546421,6.98898895,189.74,189.73,15.54414745]
[1755268546823,6.98898895,189.75,189.73,16.21414745]
[1755268547026,6.98898895,189.77,189.74,16.18414745]
[1755268547203,6.98898895,189.77,189.76,15.51414745]
[1755268547404,6.98898895,189.83,189.77,26.0]
[1755268547709,0.06,189.85,189.82,41.51414745]
[1755268547896,0.06,189.85,189.84,15.51414745]
[1755268548097,0.06,189.85,189.84,20.78174121]
[1755268548636,7.04898895,189.85,189.84,15.51414745]
[1755268549004,6.98898895,189.84,189.83,15.51414745]
[1755268549213,6.98898895,189.83,189.79,26.0]
[1755268549421,6.98898895,189.83,189.8,5.93868675]
[1755268549935,6.98898895,189.83,189.8,5.26868675]
[1755268550832,6.98898895,189.84,189.81,0.67]
[1755268551009,6.98898895,189.84,189.8,5.26868675]
[1755268551010,0.06,189.85,189.83,15.51414745]
[1755268551334,7.04898895,189.85,189.84,15.51414745]
[1755268551635,0.06,189.85,189.84,16.18414745]
[1755268551804,7.04898895,189.85,189.84,16.18414745]
[1755268552003,0.06,189.85,189.84,16.18414745]
[1755268552212,0.06,189.85,189.84,21.45174121]
[1755268552706,0.06,189.89,189.87,26.0]
[1755268552905,0.06,189.89,189.88,41.51414745]
[1755268553135,0.06,189.89,189.88,42.18414745]
[1755268553832,0.06,189.89,189.88,57.29036302]
[1755268554203,0.06,189.91,189.88,62.55684711]
[1755268554402,0.06,189.96,189.9,15.51414745]
[1755268554617,0.06,189.96,189.95,15.51414745]
[1755268555016,7.04898895,189.96,189.95,15.51414745]
[1755268555418,0.06,189.96,189.95,15.51414745]
[1755268555609,7.04898895,189.96,189.95,15.51414745]
[1755268555922,7.04898895,189.96,189.92,0.67]
[1755268556126,7.04898895,189.96,189.95,15.51414745]
[1755268557206,0.06,189.96,189.95,20.77869075]
[1755268557535,7.04898895,189.96,189.95,15.51414745]
[1755268558134,0.06,189.96,189.95,15.51414745]
[1755268558639,0.06,189.96,189.95,20.77869075]
[1755268559014,7.04898895,189.96,189.95,15.51414745]
[1755268559608,7.04898895,189.96,189.94,5.26479497]
[1755268559809,7.04898895,189.96,189.94,26.0]
[1755268560043,0.72,189.95,189.94,26.0]
[1755268560227,7.70898895,189.95,189.94,41.51414745]
[1755268560436,6.98898895,189.95,189.94,41.51414745]
[1755268560624,0.06,189.96,189.94,41.51414745]
[1755268560824,7.04898895,189.96,189.95,15.51414745]
[1755268561441,0.06,189.96,189.95,70.43036302]
[1755268562544,0.06,189.96,189.95,75.69490632]
[1755268562747,0.06,189.98,189.95,75.69490632]
[1755268562748,0.06,189.98,189.97,41.10621557]
[1755268562919,0.06,189.98,189.97,56.62036302]
[1755268563120,0.06,189.98,189.97,26.0]
[1755268563425,0.06,189.98,189.97,41.51414745]
[1755268563745,0.06,189.98,189.97,57.29036302]
[1755268564328,0.06,189.98,189.97,96.41036302]
[1755268564633,0.06,189.98,189.97,101.00435207]
[1755268565037,0.06,189.98,189.97,75.67435207]
[1755268565434,0.06,189.98,189.97,75.00435207]
[1755268566344,0.06,190.0,189.98,15.10621557]
[1755268566533,0.06,190.0,189.99,57.14670651]
[1755268566733,0.06,190.0,189.99,63.08014142]
[1755268567123,0.06,190.0,189.99,102.20014142]
[1755268567958,0.06,190.01,189.99,76.20014142]
[1755268568144,0.06,190.01,190.0,16.18414745]
[1755268568451,0.06,190.04,190.01,15.10621557]
[1755268568628,0.06,190.04,190.03,46.36854257]
[1755268568831,0.06,190.04,190.03,35.88269002]
[1755268569052,0.06,190.08,190.05,41.10621557]
[1755268569347,0.06,190.08,190.05,95.74036302]
[1755268569518,6.98898895,190.07,190.05,95.74036302]
[1755268569726,0.06,190.08,190.05,96.41036302]
[1755268570068,6.98898895,190.07,190.05,96.41036302]
[1755268570254,0.06,190.08,190.05,96.41036302]
[1755268570441,0.06,190.08,190.06,15.10621557]
[1755268570641,0.06,190.08,190.07,86.40148895]
[1755268571140,0.06,190.1,190.07,75.65158257]
[1755268571352,0.06,190.12,190.11,41.10621557]
[1755268571659,0.06,190.14,190.11,95.72036302]
[1755268571862,0.06,190.14,190.13,30.62036302]
[1755268572045,0.2,190.15,190.14,15.10621557]
[1755268572241,0.2,190.15,190.14,15.77621557]
[1755268572644,0.2,190.15,190.14,21.0354982]
[1755268572959,0.2,190.15,190.14,15.51414745]
[1755268573163,7.90898895,190.15,190.14,54.61414745]
[1755268573489,7.18898895,190.15,190.14,59.87343008]
[1755268573644,0.2,190.15,190.14,74.97964565]
[1755268574760,7.18898895,190.15,190.14,69.72036302]
[1755268574964,7.18898895,190.15,190.14,74.97964565]
[1755268575148,0.2,190.15,190.14,74.97964565]
[1755268576275,0.06,190.16,190.15,15.10621557]
[1755268576441,0.06,190.16,190.15,30.62036302]
[1755268576843,0.06,190.16,190.15,35.87936906]
[1755268577065,0.06,190.16,190.15,74.95936906]
[1755268578083,0.76,190.16,190.15,69.70036302]
[1755268578265,0.06,190.16,190.15,69.70036302]
[1755268578591,6.98898895,190.12,190.04,4.23382573]
[1755268578756,6.98898895,190.12,190.11,15.51414745]
[1755268579648,7.68898895,190.12,190.1,39.08]
[1755268579876,7.68898895,190.11,190.1,54.59414745]
[1755268580484,12.94910151,190.11,190.09,0.03]
[1755268580690,7.68898895,190.1,190.09,0.03]
[1755268581058,26.62443749,190.1,190.09,0.03]
[1755268581283,11.11029004,190.1,190.09,0.03]
[1755268581563,7.68898895,190.1,190.09,0.03]
[1755268581857,7.68898895,190.1,190.09,15.54414745]
[1755268582166,6.98898895,190.1,190.09,15.54414745]
[1755268582368,7.68898895,190.1,190.09,15.54414745]
[1755268582788,32.41783497,190.1,190.09,0.03]
[1755268582954,6.98898895,190.03,190.02,15.51414745]
[1755268583157,7.68898895,190.03,190.02,15.51414745]
[1755268583487,6.98898895,190.03,190.02,15.51414745]
[1755268583851,7.68898895,190.03,190.01,15.51414745]
[1755268584183,6.98898895,190.02,190.01,15.51414745]
[1755268584553,6.98898895,190.0,189.97,5.26394092]
[1755268584780,5.26233226,190.03,189.95,0.75]
[1755268584781,6.98898895,189.98,189.95,15.13621557]
[1755268584978,6.98898895,189.97,189.95,39.11]
[1755268585218,6.98898895,189.97,189.96,15.51414745]
[1755268586015,6.98898895,189.98,189.96,15.51414745]
[1755268586220,6.98898895,189.98,189.95,70.3744638]
[1755268586221,6.98898895,189.98,189.97,41.51414745]
[1755268586511,6.98898895,189.98,189.97,26.0]
[1755268586826,7.68898895,189.98,189.96,15.51414745]
[1755268586985,6.98898895,189.96,189.95,0.03]
[1755268587526,7.68898895,189.96,189.95,0.03]
[1755268588400,6.98898895,189.96,189.95,15.54414745]
[1755268588807,6.98898895,189.97,189.95,31.37036302]
[1755268589009,6.98898895,189.97,189.96,15.51414745]
[1755268589217,6.98898895,189.98,189.97,15.10621557]
[1755268589423,6.98898895,189.98,189.97,69.70036302]
[1755268589731,6.98898895,189.96,189.95,15.54414745]
[1755268589935,6.98898895,189.97,189.95,15.54414745]
[1755268590102,26.30211585,190.1,190.0,15.10621557]
[1755268590103,3.44766527,190.02,190.0,15.10621557]
[1755268590304,6.98898895,190.04,190.03,26.0]
[1755268590524,0.7,190.1,190.03,41.51414745]
[1755268590525,6.98898895,190.08,190.03,41.51414745]
[1755268590829,6.98898895,190.08,190.07,15.51414745]
[1755268591003,10.44101373,190.08,190.04,39.8]
[1755268591203,6.98898895,190.08,190.07,15.51414745]
[1755268591403,3.45653925,190.08,190.07,69.70036302]
[1755268591624,6.98898895,190.11,190.1,26.0]
[1755268591813,6.98898895,190.14,190.1,81.31414745]
[1755268592008,3.45676141,190.13,190.11,5.26011256]
[1755268592202,6.98898895,190.14,190.12,15.51414745]
[1755268592418,6.98898895,190.14,190.13,15.51414745]
[1755268592637,10.44859344,190.14,190.13,15.51414745]
[1755268593024,10.44859344,190.14,190.11,5.26011256]
[1755268593223,6.98898895,190.11,190.1,85.44658675]
[1755268593425,10.44740785,190.11,190.1,100.9607342]
[1755268593917,3.4584189,190.11,190.1,100.9607342]
[1755268594118,3.4584189,190.11,190.1,101.6807342]
[1755268594342,10.44980561,190.11,190.1,100.9607342]
[1755268595122,10.44980561,190.11,190.1,80.59414745]
[1755268595443,6.98898895,190.07,190.04,5.26203148]
[1755268595631,6.98898895,190.07,190.06,15.51414745]
[1755268595816,10.45165107,190.07,190.06,54.59414745]
[1755268596945,3.46266212,190.07,190.06,54.59414745]
[1755268597128,10.45165107,190.07,190.06,54.59414745]
[1755268597531,11.15165107,190.07,190.06,39.08]
[1755268597729,11.15165107,190.07,190.05,41.54414745]
[1755268597939,10.45165107,190.06,190.05,41.54414745]
[1755268598353,10.45165107,190.06,190.05,61.91213623]
[1755268598653,10.45512585,190.06,190.05,61.91213623]
[1755268599024,10.45547911,190.06,190.05,61.91213623]
[1755268599221,6.98898895,190.06,190.05,61.91213623]
[1755268599639,10.45666694,190.06,190.05,61.91213623]
[1755268599946,11.15666694,190.06,190.05,15.54414745]
[1755268600335,10.45666694,190.06,190.05,15.54414745]
[1755268601227,11.15666694,190.06,190.05,0.03]
[1755268601427,16.4181633,190.06,190.05,0.03]
[1755268601743,16.94506145,190.06,190.05,0.03]
[1755268601921,21.23825279,190.06,190.05,0.03]
[1755268602450,32.4592089,190.06,190.05,0.03]
[1755268602618,6.98898895,190.04,190.03,0.03]
[1755268602951,6.98898895,189.96,189.95,0.03]
[1755268603247,10.45787012,189.96,189.95,0.03]
[1755268603750,7.68898895,189.96,189.95,0.03]
[1755268603928,11.15689142,189.96,189.95,0.03]
[1755268604557,6.98898895,189.96,189.95,15.54414745]
[1755268605122,6.98898895,189.96,189.95,0.03]
[1755268605541,6.98898895,189.96,189.95,15.54414745]
[1755268606853,131.9,190.01,189.95,21.49869075]
[1755268606854,6.98898895,189.97,189.95,21.49869075]
[1755268607030,6.98898895,189.97,189.96,15.51414745]
[1755268607225,6.98898895,189.97,189.96,31.31036302]
[1755268607451,6.98898895,189.98,189.97,15.10621557]
[1755268607672,6.98898895,189.99,189.97,69.70036302]
[1755268607861,6.98898895,189.98,189.97,54.18621557]
[1755268608179,6.98898895,189.98,189.97,69.70036302]
[1755268608347,6.98898895,189.98,189.97,74.96435207]
[1755268608538,6.98898895,189.98,189.97,54.59414745]
[1755268608971,6.98898895,189.98,189.97,15.51414745]
[1755268609276,6.98898895,189.98,189.95,5.29449359]
[1755268609277,6.98898895,189.96,189.95,15.54414745]
[1755268609450,6.98898895,189.96,189.95,20.80869075]
[1755268609972,6.98898895,189.97,189.95,36.60490632]
[1755268610271,6.98898895,189.98,189.96,55.28414745]
[1755268610488,80.59414745,190.06,189.96,55.28414745]
[1755268610489,6.98898895,190.01,189.97,35.88435207]
[1755268610660,6.98898895,189.98,189.97,20.37020462]
[1755268610845,6.98898895,189.98,189.97,35.88435207]
[1755268611047,6.98898895,190.0,189.97,20.7781365]
[1755268611252,6.98898895,189.98,189.97,20.7781365]
[1755268611581,6.98898895,189.98,189.97,5.26398905]
[1755268611881,6.98898895,189.97,189.95,26.03]
[1755268612086,5.26262111,190.02,189.95,0.03]
[1755268612087,7.67898895,189.96,189.95,0.03]
[1755268612382,28.45740256,189.96,189.95,0.03]
[1755268612542,6.98898895,189.92,189.91,0.03]
[1755268612746,6.98898895,189.92,189.91,15.54414745]
[1755268613370,6.98898895,189.92,189.91,0.03]
[1755268613571,7.67898895,189.92,189.91,0.03]
[1755268614368,8.2058871,189.92,189.91,0.03]
[1755268615487,6.98898895,189.92,189.91,15.54414745]
[1755268615661,6.98898895,189.92,189.91,16.23414745]
[1755268615867,6.98898895,189.92,189.91,31.34036302]
[1755268616171,6.98898895,189.93,189.91,31.34036302]
[1755268616360,6.98898895,189.92,189.91,20.40186772]
[1755268616563,6.98898895,189.92,189.91,35.91601517]
[1755268617088,6.98898895,189.93,189.91,36.60601517]
[1755268617285,6.98898895,189.93,189.92,16.20414745]
[1755268617449,6.98898895,189.95,189.94,26.0]
[1755268617653,5.26260731,190.02,189.94,81.28414745]
[1755268617654,6.98898895,189.96,189.94,81.28414745]
[1755268617853,6.98898895,189.96,189.95,16.20414745]
[1755268618386,6.98898895,189.96,189.95,21.46869075]
[1755268620084,6.98898895,189.99,189.95,21.46869075]
[1755268620266,6.98898895,189.96,189.95,5.9545433]
[1755268620464,6.98898895,189.96,189.95,20.77869075]
[1755268621284,6.98898895,189.95,189.92,5.26537489]
[1755268621579,6.98898895,189.95,189.94,41.51414745]
[1755268621781,6.98898895,189.95,189.94,42.20414745]
[1755268621968,6.98898895,189.95,189.94,47.46896791]
[1755268622161,6.98898895,189.95,189.94,46.77896791]
[1755268622385,6.98898895,189.97,189.94,46.77896791]
[1755268622586,6.98898895,189.95,189.94,31.26482046]
[1755268622794,6.98898895,189.95,189.94,46.77896791]
[1755268622994,6.98898895,189.98,189.94,47.46896791]
[1755268623170,6.98898895,189.98,189.97,15.51414745]
[1755268624886,7.67898895,189.98,189.97,15.51414745]
[1755268625088,7.67898895,189.98,189.94,31.26476096]
[1755268625407,6.98898895,189.94,189.93,39.08]
[1755268625573,6.98898895,189.94,189.93,54.59414745]
[1755268625996,6.98898895,189.94,189.93,59.85924511]
[1755268626804,6.98898895,189.94,189.93,54.59414745]
[1755268626999,6.98898895,189.94,189.93,59.85924511]
[1755268627202,6.98898895,189.94,189.93,54.59414745]
[1755268627381,6.98898895,189.92,189.91,0.03]
[1755268627584,6.98898895,189.92,189.91,15.54414745]
[1755268627786,6.98898895,189.92,189.91,20.8097996]
[1755268628002,6.98898895,189.92,189.91,15.54414745]
[1755268628315,6.98898895,189.92,189.91,0.03]
[1755268628494,6.98898895,189.92,189.91,15.54414745]
[1755268630228,6.98898895,189.92,189.91,20.8097996]
[1755268631014,6.98898895,189.92,189.91,15.54414745]
[1755268631514,7.67898895,189.92,189.91,0.03]
[1755268631820,28.45851129,189.92,189.91,0.03]
[1755268631986,12.94436384,189.92,189.91,0.03]
[1755268632182,11.14697874,189.92,189.91,15.54414745]
[1755268632407,7.67898895,189.92,189.91,0.03]
[1755268633092,6.98898895,189.92,189.91,15.54414745]
[1755268633624,6.98898895,189.92,189.91,0.03]
[1755268633812,6.98898895,189.92,189.91,15.54414745]
[1755268634214,6.98898895,189.92,189.91,21.4997996]
[1755268634514,6.98898895,189.92,189.91,15.54414745]
[1755268634692,6.98898895,189.92,189.91,0.03]
[1755268634896,6.98898895,189.92,189.91,15.54414745]
[1755268635094,6.98898895,189.92,189.91,16.26414745]
[1755268635297,6.98898895,189.92,189.91,21.5297996]
[1755268635891,6.98898895,189.92,189.91,20.8097996]
[1755268636395,6.98898895,189.92,189.91,15.54414745]
[1755268636717,6.98898895,189.92,189.91,21.5297996]
[1755268636896,6.98898895,189.93,189.91,21.5297996]
[1755268637091,6.98898895,189.93,189.92,16.23414745]
[1755268637411,6.98898895,189.93,189.92,15.51414745]
[1755268638818,6.98898895,189.93,189.92,20.77952234]
[1755268639912,6.98898895,189.92,189.91,0.03]
[1755268640112,7.64898895,189.92,189.91,0.03]
[1755268640417,7.64898895,189.92,189.91,15.54414745]
[1755268640617,6.98898895,189.92,189.91,15.54414745]
[1755268641155,6.98898895,189.93,189.91,15.54414745]
[1755268641433,6.98898895,189.93,189.92,15.51414745]
[1755268641797,6.98898895,189.93,189.92,16.23414745]
[1755268642194,6.98898895,189.94,189.92,16.23414745]
[1755268642516,6.98898895,189.94,189.93,21.49924511]
[1755268642915,6.98898895,189.94,189.93,15.51414745]
[1755268643115,6.98898895,189.92,189.91,15.54414745]
[1755268643793,6.98898895,189.92,189.91,20.8097996]
[1755268644314,6.98898895,189.92,189.91,0.03]
[1755268644710,6.98898895,189.92,189.91,15.54414745]
[1755268645126,6.98898895,189.92,189.91,0.03]
[1755268645426,6.98898895,189.92,189.91,15.54414745]
[1755268646530,6.98898895,189.93,189.91,20.8097996]